bitfinex/quotes_BTCUSD_20250826
["timestamp","ask_amount","ask_price","bid_price","bid_amount"]
[1756214970630,0.68951991,110080.0,110070.0,0.18270255]
[1756214971037,0.69051991,110080.0,110070.0,0.18270255]
[1756214971168,0.18466604,110080.0,110070.0,0.18270255]
[1756214971412,0.69051991,110080.0,110070.0,0.18270255]
[1756214974170,0.18466604,110080.0,110070.0,0.19767155]
[1756214974425,0.18466604,110080.0,110070.0,0.19978155]
[1756214974675,0.69051991,110080.0,110070.0,0.20060155]
[1756214975226,1.19816378,110080.0,110070.0,0.001]
[1756214975611,0.69230991,110080.0,110070.0,0.001]
[1756214977799,0.69051991,110080.0,110070.0,0.001]
[1756214978201,0.71823617,110080.0,110070.0,0.001]
[1756214978400,1.23225048,110080.0,110070.0,0.001]
[1756214978607,1.32369577,110080.0,110070.0,0.001]
[1756214979045,1.23225048,110080.0,110070.0,0.001]
[1756214980304,1.23226214,110080.0,110070.0,0.001]
[1756214980510,1.22386724,110080.0,110070.0,0.001]
[1756214980760,1.23226271,110080.0,110070.0,0.001]
[1756214983427,1.39155271,110080.0,110070.0,0.001]
[1756214985179,0.88569884,110080.0,110070.0,0.001]
[1756214985394,0.88569884,110080.0,110070.0,0.0062]
[1756214987281,1.39155271,110080.0,110070.0,0.001]
[1756214987512,1.482998,110080.0,110070.0,0.001]
[1756214987734,1.39155271,110080.0,110070.0,0.001]
[1756214989395,0.88569884,110080.0,110070.0,0.0042]
[1756214989622,0.88569884,110080.0,110070.0,0.0062]
[1756214990286,0.87731778,110080.0,110070.0,0.0062]
[1756214990553,0.72465172,110080.0,110070.0,0.0062]
[1756214990781,0.88371282,110080.0,110070.0,0.0062]
[1756214991447,0.74882764,110080.0,110070.0,0.0062]
[1756214991848,0.90986764,110080.0,110070.0,0.0062]
[1756214992325,0.88569282,110080.0,110070.0,0.0062]
[1756214992544,0.74882764,110080.0,110070.0,0.0062]
[1756214992972,0.88569282,110080.0,110070.0,0.0062]
[1756214993635,0.88371282,110080.0,110070.0,0.0062]
[1756214995492,0.21681895,110080.0,110070.0,0.18790255]
[1756214995708,0.72267282,110080.0,110070.0,0.22486467]
[1756214995937,0.72267282,110080.0,110070.0,0.04316212]
[1756214996185,0.72465282,110080.0,110070.0,0.001]
[1756214996423,1.39150669,110080.0,110070.0,0.001]
[1756214998770,0.88565282,110080.0,110070.0,0.001]
[1756214999858,1.39150669,110080.0,110070.0,0.001]
[1756215000210,1.38309479,110080.0,110070.0,0.001]
[1756215000434,1.39151553,110080.0,110070.0,0.001]
[1756215000647,6.24219382,110080.0,110070.0,0.001]
[1756215001059,6.2663699,110080.0,110070.0,0.001]
[1756215001264,6.2663299,110080.0,110070.0,0.001]
[1756215001478,6.42767192,110080.0,110070.0,0.001]
[1756215001705,5.42414978,110080.0,110070.0,0.001]
[1756215001937,6.48439419,110080.0,110070.0,0.001]
[1756215002139,6.51167362,110080.0,110070.0,0.001]
[1756215002564,6.51167102,110080.0,110070.0,0.001]
[1756215003208,6.46313435,110080.0,110070.0,0.001]
[1756215003639,6.30217435,110080.0,110070.0,0.001]
[1756215003865,6.20893906,110080.0,110070.0,0.001]
[1756215004074,6.20893906,110080.0,110070.0,0.0062]
[1756215004075,5.18679768,110080.0,110070.0,0.0062]
[1756215004316,0.72268032,110080.0,110070.0,0.18790255]
[1756215004538,0.52166649,110080.0,110070.0,0.18790255]
[1756215004749,0.00739062,110080.0,110070.0,0.18790255]
[1756215004971,0.00739062,110080.0,110070.0,0.33242254]
[1756215004972,0.001,110080.0,110070.0,0.33242254]
[1756215005181,0.50685387,110080.0,110070.0,0.33242254]
[1756215005833,1.19439378,110080.0,110070.0,0.0062]
[1756215006036,1.19637378,110080.0,110070.0,0.0052]
[1756215006251,0.18170255,110070.0,110060.0,0.18171871]
[1756215006465,0.68755642,110070.0,110060.0,0.27846762]
[1756215006672,0.68755642,110070.0,110060.0,0.09674891]
[1756215007105,0.68755642,110070.0,110060.0,0.27846797]
[1756215007306,0.18170255,110070.0,110060.0,0.27846797]
[1756215007519,0.85045642,110070.0,110060.0,8.689e-05]
[1756215007754,0.85045642,110070.0,110060.0,0.00528689]
[1756215008170,0.94190171,110070.0,110060.0,8.689e-05]
[1756215008383,6.44723728,110070.0,110060.0,8.689e-05]
[1756215008592,6.47503483,110070.0,110060.0,0.00208689]
[1756215008799,6.47503483,110070.0,110060.0,0.00312689]
[1756215008800,6.51658435,110070.0,110060.0,0.00312689]
[1756215009010,6.50817119,110070.0,110060.0,0.00312689]
[1756215009214,6.51658122,110070.0,110060.0,0.00312689]
[1756215009478,6.51019414,110070.0,110060.0,0.00012689]
[1756215009717,6.44406009,110070.0,110060.0,0.00012689]
[1756215009924,5.94120622,110070.0,110060.0,0.00012689]
[1756215010130,5.98533894,110070.0,110060.0,0.00012689]
[1756215010985,6.49119281,110070.0,110060.0,0.00012689]
[1756215011193,6.50800271,110070.0,110060.0,0.00012689]
[1756215012022,6.00214884,110070.0,110060.0,0.00012689]
[1756215012230,5.49629497,110070.0,110060.0,0.00012689]
[1756215012433,5.84122884,110070.0,110060.0,0.00012689]
[1756215012639,6.00214884,110070.0,110060.0,0.00012689]
[1756215012854,5.98792932,110070.0,110060.0,0.00012689]
[1756215013544,5.7672767,110070.0,110060.0,0.00012689]
[1756215013759,5.81538702,110070.0,110060.0,0.00532689]
[1756215014001,5.68818497,110070.0,110060.0,0.00532689]
[1756215014233,5.52726497,110070.0,110060.0,0.00532689]
[1756215014474,5.61191942,110070.0,110060.0,0.18704595]
[1756215014689,5.60891942,110070.0,110060.0,0.00532689]
[1756215014894,5.60591942,110070.0,110060.0,0.00532689]
[1756215015107,5.69941471,110070.0,110060.0,0.00012689]
[1756215015320,5.68827816,110070.0,110060.0,0.00012689]
[1756215015518,5.68727816,110070.0,110060.0,0.00012689]
[1756215015936,5.10006555,110070.0,110060.0,0.00207689]
[1756215016146,5.59378287,110070.0,110060.0,0.18704595]
[1756215016781,5.59378287,110070.0,110060.0,0.00532689]
[1756215016990,5.59378287,110070.0,110060.0,0.18704595]
[1756215017822,5.59378287,110070.0,110060.0,0.00532689]
[1756215018139,5.10006555,110070.0,110060.0,0.18704595]
[1756215018317,5.59578287,110070.0,110060.0,0.00532689]
[1756215018518,5.59783287,110070.0,110060.0,0.00532689]
[1756215018714,5.59574287,110070.0,110060.0,0.00532689]
[1756215018967,5.43286287,110070.0,110060.0,0.00532689]
[1756215019195,5.68722816,110070.0,110060.0,0.00012689]
[1756215019649,5.59678287,110070.0,110060.0,0.00207689]
[1756215019860,5.60316018,110070.0,110060.0,0.00012689]
[1756215020317,5.10944286,110070.0,110060.0,0.00012689]
[1756215020540,5.60316018,110070.0,110060.0,0.00012689]
[1756215020756,5.10944286,110070.0,110060.0,0.00012689]
[1756215020934,5.79619646,110070.0,110060.0,0.00012689]
[1756215021625,6.39184195,110070.0,110060.0,1e-08]
[1756215021793,0.19082234,110050.0,110020.0,0.00012]
[1756215022149,0.67548592,110030.0,110020.0,0.00012]
[1756215022367,5.59380892,110030.0,110020.0,0.00012]
[1756215022586,5.59380892,110030.0,110020.0,0.00532]
[1756215022802,5.1000916,110030.0,110020.0,0.00532]
[1756215023014,5.59578892,110030.0,110020.0,0.00532]
[1756215023455,5.59583669,110030.0,110020.0,0.00532]
[1756215024074,5.61022369,110030.0,110020.0,0.00632]
[1756215024279,5.60824369,110030.0,110020.0,0.00632]
[1756215024510,5.59385669,110030.0,110020.0,0.00632]
[1756215024994,0.67553369,110030.0,110020.0,0.18810512]
[1756215025206,0.83645369,110030.0,110020.0,0.18810512]
[1756215025631,0.83645369,110030.0,110020.0,0.19010512]
[1756215025834,0.67553369,110030.0,110020.0,0.19010512]
[1756215026068,0.83645369,110030.0,110020.0,0.19010512]
[1756215027253,0.65468509,110030.0,110020.0,0.19010512]
[1756215027464,0.83645369,110030.0,110020.0,0.19010512]
[1756215028042,0.65468509,110030.0,110020.0,0.19010512]
[1756215028246,0.49376509,110030.0,110020.0,0.28156714]
[1756215028412,0.65468509,110030.0,110020.0,0.28156714]
[1756215028823,0.83645369,110030.0,110020.0,0.28156714]
[1756215029022,0.67553369,110030.0,110020.0,0.19010512]
[1756215029251,0.83645369,110030.0,110020.0,0.19010512]
[1756215029423,0.83645369,110030.0,110020.0,0.00832]
[1756215029630,0.83645369,110030.0,110020.0,0.19010512]
[1756215029867,0.83645369,110030.0,110020.0,0.00832]
[1756215030029,0.92994898,110030.0,110020.0,0.00507]
[1756215030230,0.83645369,110030.0,110020.0,0.19010512]
[1756215030437,0.83849369,110030.0,110020.0,0.19010512]
[1756215030854,0.49376509,110030.0,110020.0,0.19010512]
[1756215031183,0.65468509,110030.0,110020.0,0.19010512]
[1756215031392,0.83843369,110030.0,110020.0,0.00312]
[1756215031715,0.43616166,110030.0,110020.0,0.00312]
[1756215031886,5.59587669,110030.0,110020.0,0.00507]
[1756215032550,5.59587669,110030.0,110020.0,0.00312]
[1756215032885,5.59587669,110030.0,110020.0,0.19010512]
[1756215033091,5.59587669,110030.0,110020.0,0.00832]
[1756215033767,5.68732198,110030.0,110020.0,0.00312]
[1756215034455,5.43495669,110030.0,110020.0,0.19010512]
[1756215034599,0.83645369,110030.0,110020.0,0.19010512]
[1756215034797,0.65468509,110030.0,110020.0,0.19010512]
[1756215035004,4.777e-05,110030.0,110020.0,0.19010512]
[1756215035191,0.83645369,110030.0,110020.0,0.28156714]
[1756215035397,0.49376509,110030.0,110020.0,0.28156714]
[1756215035608,0.16096777,110030.0,110020.0,0.29368417]
[1756215035911,0.83645369,110030.0,110020.0,0.28156714]
[1756215036121,0.83645369,110030.0,110020.0,0.09978202]
[1756215036122,0.83843369,110030.0,110020.0,0.09978202]
[1756215036347,0.83843369,110030.0,110020.0,0.00312]
[1756215036946,0.83843369,110030.0,110020.0,0.18685512]
[1756215037172,0.83843369,110030.0,110020.0,0.19010512]
[1756215037376,0.92987898,110030.0,110020.0,0.00507]
[1756215037582,0.92987898,110030.0,110020.0,0.00312]
[1756215038402,0.76895898,110030.0,110020.0,0.00312]
[1756215038618,0.92987898,110030.0,110020.0,0.19010512]
[1756215038801,0.16096777,110030.0,110020.0,0.19010512]
[1756215039011,0.65468509,110030.0,110020.0,0.19010512]
[1756215039421,0.83843369,110030.0,110020.0,0.00312]
[1756215040389,0.83843369,110030.0,110020.0,0.19010512]
[1756215040597,0.65468509,110030.0,110020.0,0.22729462]
[1756215040801,0.65468509,110030.0,110020.0,0.19010512]
[1756215041364,0.83645369,110030.0,110020.0,0.19010512]
[1756215041798,0.65468509,110030.0,110020.0,0.19010512]
[1756215042744,0.83645369,110030.0,110020.0,0.19010512]
[1756215042948,0.65468509,110030.0,110020.0,0.19010512]
[1756215043583,0.65464509,110030.0,110020.0,0.19010512]
[1756215043818,4.777e-05,110030.0,110020.0,0.19010512]
[1756215044032,0.99376509,110030.0,110020.0,0.19010512]
[1756215044245,0.16092777,110030.0,110020.0,0.22729462]
[1756215044450,0.65464509,110030.0,110020.0,0.22729462]
[1756215044855,0.16092777,110030.0,110020.0,0.19010512]
[1756215045004,0.65464509,110030.0,110020.0,0.19010512]
[1756215045211,0.65464509,110030.0,110020.0,0.28156714]
[1756215045212,4.777e-05,110030.0,110020.0,0.28156714]
[1756215045428,0.49376509,110030.0,110020.0,0.28156714]
[1756215046191,0.67754369,110030.0,110020.0,0.18490512]
[1756215046394,0.67754369,110030.0,110020.0,0.18706512]
[1756215046598,0.49376509,110030.0,110020.0,0.19008512]
[1756215046993,0.76838773,110030.0,110020.0,0.18490512]
[1756215047216,0.76838773,110030.0,110020.0,0.00312]
[1756215047465,0.77477192,110030.0,110020.0,0.00312]
[1756215047644,5.60389492,110030.0,110020.0,0.00312]
[1756215047802,5.2100374,110030.0,110020.0,0.00312]
[1756215048009,5.72310421,110030.0,110020.0,0.00312]
[1756215049473,5.73991963,110030.0,110020.0,0.00312]
[1756215049676,5.75414486,110030.0,110020.0,0.00312]
[1756215050848,6.24786218,110030.0,110020.0,0.00312]
[1756215051129,6.24786218,110030.0,110020.0,0.00212]
[1756215051130,5.75414486,110030.0,110020.0,0.00212]
[1756215051342,6.27210341,110030.0,110020.0,0.00012]
[1756215051752,6.27574841,110030.0,110020.0,0.00012]
[1756215051957,6.43686841,110030.0,110020.0,0.00012]
[1756215052357,0.18180165,110010.0,110000.0,1e-08]
[1756215052557,6.27744698,110010.0,110000.0,1e-08]
[1756215052760,6.28125698,110010.0,110000.0,1e-08]
[1756215052999,6.50860379,110010.0,110000.0,1e-08]
[1756215053352,0.18188432,109960.0,109950.0,0.0369001]
[1756215053555,0.84689838,109960.0,109950.0,0.03768662]
[1756215053762,0.84689838,109960.0,109950.0,0.03250662]
[1756215053763,0.93980019,109960.0,109950.0,0.03250662]
[1756215053971,6.19734073,109960.0,109950.0,0.03250662]
[1756215054172,6.03614073,109960.0,109950.0,0.03250662]
[1756215054410,5.70366341,109960.0,109950.0,0.03466662]
[1756215054617,5.70366341,109960.0,109950.0,0.03297894]
[1756215054790,6.19910073,109960.0,109950.0,0.03297894]
[1756215054995,6.19910073,109960.0,109950.0,0.03597894]
[1756215055809,5.67756925,109960.0,109950.0,0.03597894]
[1756215056017,6.35182005,109960.0,109950.0,0.03597894]
[1756215056219,6.19054005,109960.0,109950.0,0.03797894]
[1756215056420,6.35182005,109960.0,109950.0,0.03497894]
[1756215056846,5.8804064,109960.0,109950.0,0.03397894]
[1756215057114,5.85630273,109960.0,109950.0,0.03397894]
[1756215057443,5.85630273,109960.0,109950.0,0.03297894]
[1756215057625,5.69682273,109960.0,109950.0,0.03297894]
[1756215057826,6.35170005,109960.0,109950.0,0.03397894]
[1756215058025,5.85622273,109960.0,109950.0,0.03397894]
[1756215058425,5.69506273,109960.0,109950.0,0.03497894]
[1756215058626,0.04520555,109930.0,109890.0,1.04165539]
[1756215058846,0.53892287,109930.0,109920.0,0.18410915]
[1756215059050,0.70004287,109930.0,109920.0,0.27557117]
[1756215059554,0.70004287,109930.0,109920.0,0.27557252]
[1756215059555,0.88197682,109930.0,109920.0,0.27557252]
[1756215059758,0.3882595,109930.0,109920.0,0.27557252]
[1756215059974,0.88197682,109930.0,109920.0,0.26484305]
[1756215060299,0.88197682,109930.0,109920.0,0.27100305]
[1756215060300,0.20628555,109930.0,109920.0,0.27100305]
[1756215060621,0.8988873,109930.0,109920.0,0.00616]
[1756215060796,0.74415405,109930.0,109920.0,0.00616]
[1756215061019,0.90527405,109930.0,109920.0,0.00616]
[1756215061233,0.90326405,109930.0,109920.0,0.01318]
[1756215061425,0.0515523,109930.0,109920.0,0.1951305]
[1756215061639,0.72085682,109930.0,109920.0,0.01318]
[1756215061843,0.73217958,109930.0,109920.0,0.008]
[1756215062213,0.73217958,109930.0,109920.0,0.01016]
[1756215062445,0.72920958,109930.0,109920.0,0.01016]
[1756215062695,0.72920958,109930.0,109920.0,0.01318]
[1756215062696,0.98000487,109930.0,109920.0,0.01318]
[1756215062899,0.98498487,109930.0,109920.0,0.008]
[1756215063807,0.48632755,109930.0,109920.0,0.01318]
[1756215064004,0.48632755,109930.0,109920.0,0.01016]
[1756215064236,0.98205487,109930.0,109920.0,0.01016]
[1756215064485,0.88229682,109930.0,109920.0,0.01318]
[1756215064726,0.89360969,109930.0,109920.0,0.008]
[1756215064967,0.89063969,109930.0,109920.0,0.01016]
[1756215065190,0.72718969,109930.0,109920.0,0.1921105]
[1756215065411,0.04520555,109930.0,109920.0,0.1951305]
[1756215065632,0.70056287,109930.0,109920.0,0.1951305]
[1756215065865,0.04520555,109930.0,109920.0,0.32430215]
[1756215066108,0.20696555,109940.0,109930.0,0.18193395]
[1756215066571,0.49371732,109940.0,109930.0,0.18711395]
[1756215066858,0.88260027,109940.0,109930.0,0.18711395]
[1756215067115,0.88260027,109940.0,109930.0,0.00518]
[1756215067116,0.97404556,109940.0,109930.0,0.00518]
[1756215067346,0.97404556,109940.0,109930.0,0.18711395]
[1756215067586,0.38888295,109940.0,109930.0,0.18711395]
[1756215067776,0.20712555,109940.0,109930.0,0.18711395]
[1756215067898,0.04520555,109940.0,109930.0,0.27857597]
[1756215068105,0.20720555,109940.0,109930.0,0.32593837]
[1756215068480,0.20720555,109940.0,109930.0,0.27857597]
[1756215068661,0.70092287,109940.0,109930.0,0.28057597]
[1756215068875,0.20720555,109940.0,109930.0,0.28057597]
[1756215069082,0.53892287,109940.0,109930.0,0.28057597]
[1756215069287,0.60888287,109950.0,109940.0,0.1819174]
[1756215069430,0.00047799,109960.0,109950.0,0.18190086]
[1756215069640,0.04568354,109960.0,109950.0,0.27854288]
[1756215070488,0.00047799,109960.0,109950.0,0.83451823]
[1756215071244,0.00047799,109960.0,109950.0,0.34380091]
[1756215071461,0.00047799,109960.0,109950.0,0.50632091]
[1756215071648,0.00047799,109960.0,109950.0,1.00003823]
[1756215071853,0.00047799,109960.0,109950.0,0.54080091]
[1756215072053,0.00047799,109960.0,109950.0,1.03451823]
[1756215072292,0.00047799,109960.0,109950.0,1.24856184]
[1756215072516,0.00047799,109960.0,109950.0,0.75784452]
[1756215072755,0.00047799,109960.0,109950.0,1.24856184]
[1756215072971,1e-08,109960.0,109950.0,2.28707361]
[1756215073201,1e-08,109960.0,109950.0,2.68715361]
[1756215073431,0.0725196,110020.0,110010.0,0.18180165]
[1756215073680,0.0756696,110040.0,110030.0,0.1817686]
[1756215073681,0.0725196,110040.0,110030.0,0.1817686]
[1756215073890,0.0725196,110040.0,110030.0,0.44215062]
[1756215074555,0.0725196,110040.0,110030.0,0.27851062]
[1756215074993,0.3058396,110070.0,110060.0,0.18171906]
[1756215074994,0.11772515,110070.0,110060.0,0.18171906]
[1756215075214,0.11772515,110070.0,110060.0,0.47848654]
[1756215075215,0.08085,110070.0,110060.0,0.47848654]
[1756215075443,0.0725196,110070.0,110060.0,0.47848654]
[1756215075879,0.11772515,110090.0,110080.0,0.18168604]
[1756215076123,0.11772515,110090.0,110080.0,0.27314806]
[1756215076124,0.12803876,110090.0,110080.0,0.27314806]
[1756215076349,0.79510201,110090.0,110070.0,0.18170255]
[1756215076604,0.46802901,110090.0,110070.0,0.43732275]
[1756215076787,0.46802901,110090.0,110080.0,0.18168604]
[1756215076788,0.12802901,110090.0,110080.0,0.18168604]
[1756215077001,0.12603901,110090.0,110080.0,0.28069913]
[1756215077211,0.0725196,110110.0,110090.0,0.18165738]
[1756215077420,0.04520555,110100.0,110090.0,0.4409094]
[1756215077628,0.25415633,110110.0,110090.0,0.2783994]
[1756215077898,0.00830596,110110.0,110100.0,0.77229304]
[1756215078116,0.0725196,110140.0,110130.0,0.18160355]
[1756215078338,0.0004,110150.0,110140.0,0.18158707]
[1756215078550,0.0004,110150.0,110140.0,0.21142447]
[1756215078783,0.00869092,110150.0,110140.0,0.30288649]
[1756215078990,0.0538984,110150.0,110140.0,0.30288649]
[1756215079204,0.04560555,110150.0,110140.0,0.44372909]
[1756215079646,0.04560555,110150.0,110140.0,0.27832909]
[1756215079866,0.04560555,110150.0,110140.0,0.00048871]
[1756215079867,0.84580219,110150.0,110140.0,0.00048871]
[1756215080102,1.00976708,110150.0,110140.0,0.00048871]
[1756215080339,1.00976708,110150.0,110140.0,0.18211578]
[1756215080340,0.04560555,110150.0,110140.0,0.18211578]
[1756215080575,0.0004,110150.0,110140.0,0.00052871]
[1756215080799,0.0004,110150.0,110140.0,0.3487378]
[1756215081005,0.0004,110150.0,110140.0,0.42225124]
[1756215081430,0.0004,110150.0,110140.0,0.58510124]
[1756215081675,0.0004,110150.0,110140.0,0.41906124]
[1756215081890,0.0004,110150.0,110140.0,0.58929124]
[1756215082355,0.0004,110150.0,110140.0,1.74657175]
[1756215082579,0.0004,110190.0,110180.0,0.34]
[1756215082806,0.1056,110200.0,110190.0,1.33978518]
[1756215083034,0.1056,110200.0,110190.0,1.4365272]
[1756215083275,0.1056,110200.0,110190.0,0.27824669]
[1756215083770,0.1056,110200.0,110190.0,0.44660669]
[1756215084013,0.1056,110200.0,110190.0,1.06058146]
[1756215084236,0.1056,110200.0,110190.0,1.06481793]
[1756215084440,0.1056,110200.0,110190.0,1.64242954]
[1756215084657,0.1056,110200.0,110190.0,1.84734399]
[1756215084868,0.1056,110200.0,110190.0,0.66002348]
[1756215085090,0.10759,110200.0,110190.0,0.09595073]
[1756215085316,0.2922282,110200.0,110190.0,0.09595073]
[1756215085579,0.1056,110200.0,110190.0,0.4472554]
[1756215085788,0.15080555,110200.0,110190.0,0.4493454]
[1756215085993,0.15080555,110200.0,110190.0,0.37647158]
[1756215085994,0.15594555,110200.0,110190.0,0.37647158]
[1756215086207,0.33743375,110200.0,110190.0,0.26579073]
[1756215086417,0.33743375,110200.0,110190.0,0.00452871]
[1756215086628,1.29091981,110200.0,110190.0,0.00452871]
[1756215086855,0.49594555,110200.0,110190.0,0.01052871]
[1756215087073,0.1056,110200.0,110190.0,0.2838542]
[1756215087290,0.33428375,110200.0,110190.0,0.16252797]
[1756215087506,0.15594555,110200.0,110190.0,0.4456154]
[1756215087720,0.1056,110200.0,110190.0,0.4510154]
[1756215087943,0.1056,110200.0,110190.0,1.13702106]
[1756215088171,0.0004,110210.0,110200.0,0.1814882]
[1756215088395,0.0004,110210.0,110200.0,1.22962628]
[1756215088631,0.0004,110210.0,110200.0,0.61614022]
[1756215088844,0.0004,110210.0,110200.0,0.66283124]
[1756215089077,0.0004,110210.0,110200.0,1.2763173]
[1756215089627,0.0004,110260.0,110250.0,0.18140589]
[1756215089861,0.0004,110260.0,110250.0,0.51958791]
[1756215090088,0.0004,110260.0,110250.0,1.203255]
[1756215090316,0.0004,110260.0,110250.0,0.58976894]
[1756215090552,0.0004,110260.0,110250.0,1.203255]
[1756215090784,0.0004,110260.0,110250.0,0.92976894]
[1756215091017,0.0004,110260.0,110250.0,1.1350521]
[1756215091248,0.0004,110260.0,110250.0,1.1350921]
[1756215091480,0.0004,110260.0,110250.0,1.54378371]
[1756215091714,0.0004,110270.0,110260.0,0.18138944]
[1756215091961,0.0004,110270.0,110260.0,0.29738572]
[1756215092189,0.0004,110270.0,110260.0,0.47419572]
[1756215092430,0.0004,110270.0,110260.0,0.46935572]
[1756215092660,0.00239,110270.0,110260.0,0.46995572]
[1756215092893,0.00554,110270.0,110260.0,0.11280628]
[1756215093126,0.00554,110270.0,110260.0,0.26722202]
[1756215093421,0.04560555,110270.0,110260.0,0.44869146]
[1756215093655,0.0004,110270.0,110260.0,0.44917146]
[1756215093891,0.00554,110270.0,110260.0,0.1574073]
[1756215094114,0.23211854,110270.0,110260.0,0.17732]
[1756215094348,0.23211854,110270.0,110250.0,0.07036871]
[1756215094349,0.18138944,110260.0,110250.0,0.07036871]
[1756215094586,0.04719555,110260.0,110250.0,0.24792871]
[1756215094819,0.05034555,110260.0,110250.0,0.20884807]
[1756215095064,0.00514,110260.0,110250.0,0.56873396]
[1756215095280,0.05034555,110260.0,110250.0,0.56873396]
[1756215095500,0.38560555,110270.0,110260.0,0.18138944]
[1756215095743,0.38560555,110270.0,110260.0,0.27585146]
[1756215095744,0.0004,110270.0,110260.0,0.27585146]
[1756215095978,0.00554,110270.0,110260.0,0.16977436]
[1756215096223,0.18691299,110270.0,110260.0,0.16977436]
[1756215096459,0.00554,110270.0,110260.0,0.35343116]
[1756215096690,0.0004,110270.0,110260.0,0.3532538]
[1756215096926,0.0004,110270.0,110260.0,0.3511638]
[1756215097184,0.80039905,110270.0,110260.0,0.07831234]
[1756215097396,0.00554,110270.0,110260.0,0.18016]
[1756215097601,0.18691299,110270.0,110260.0,0.18016]
[1756215097807,0.23211854,110270.0,110260.0,0.18016]
[1756215098008,0.8456046,110270.0,110260.0,0.22815512]
[1756215098371,0.02185411,110270.0,110260.0,0.05099512]
[1756215098573,0.02185411,110270.0,110260.0,0.23238456]
[1756215098773,1.14389349,110290.0,110270.0,0.18136925]
[1756215098967,0.02384411,110280.0,110270.0,0.18136925]
[1756215099164,1.15868671,110280.0,110270.0,0.04103385]
[1756215099562,1.15868671,110280.0,110260.0,0.18128]
[1756215099563,0.2032271,110270.0,110260.0,0.18128]
[1756215099788,0.63733017,110270.0,110260.0,0.36266944]
[1756215100101,0.02185411,110270.0,110260.0,0.36266944]
[1756215100309,0.34,110280.0,110260.0,0.36266944]
[1756215100310,0.36185411,110280.0,110270.0,0.18137299]
[1756215100519,0.02185411,110270.0,110260.0,0.36166944]
[1756215100720,0.63534017,110270.0,110260.0,0.42392069]
[1756215100921,0.02383411,110270.0,110260.0,0.42392069]
[1756215101140,0.02383411,110270.0,110260.0,0.06225125]
[1756215101339,0.02398411,110270.0,110260.0,0.36322944]
[1756215101560,0.36185411,110280.0,110270.0,0.18137299]
[1756215101761,1.04577046,110300.0,110270.0,0.18137299]
[1756215101967,0.03047685,110300.0,110290.0,0.1813401]
[1756215102170,1.32726657,110300.0,110290.0,0.3621401]
[1756215102385,0.03047685,110300.0,110290.0,0.41648893]
[1756215102589,0.64396291,110300.0,110290.0,0.41648893]
[1756215102998,0.01060274,110300.0,110290.0,0.41648893]
[1756215103153,0.03245685,110300.0,110290.0,0.36262881]
[1756215103359,0.03047685,110300.0,110290.0,0.36262881]
[1756215103566,0.00862274,110300.0,110290.0,0.36785881]
[1756215103885,0.00862274,110300.0,110290.0,0.45932083]
[1756215104091,0.00862274,110300.0,110290.0,0.62052612]
[1756215104288,0.00862274,110300.0,110290.0,0.63198113]
[1756215104494,0.00862274,110300.0,110290.0,0.56222113]
[1756215104874,0.00862274,110300.0,110290.0,0.56745113]
[1756215105665,0.00862274,110300.0,110290.0,0.57045113]
[1756215105876,0.0004,110310.0,110300.0,0.18132366]
[1756215106086,0.0004,110310.0,110300.0,0.33717171]
[1756215106293,0.0004,110310.0,110300.0,0.51643171]
[1756215106504,0.0004,110310.0,110300.0,0.52166171]
[1756215107118,0.61601606,110310.0,110300.0,0.33407171]
[1756215107334,0.63787017,110310.0,110300.0,0.01668501]
[1756215107555,0.63787017,110310.0,110300.0,0.19800867]
[1756215107768,1.16085739,110310.0,110300.0,0.01668501]
[1756215107972,0.36185411,110300.0,110290.0,0.18182881]
[1756215108145,1.15834383,110300.0,110290.0,0.07295946]
[1756215108348,1.15834383,110300.0,110290.0,0.0172892]
[1756215108349,1.16047383,110300.0,110290.0,0.0172892]
[1756215108545,1.16047383,110300.0,110290.0,0.1986293]
[1756215108546,0.36398411,110300.0,110290.0,0.1986293]
[1756215108807,1.16047383,110300.0,110290.0,0.0172892]
[1756215109175,0.36398411,110300.0,110290.0,0.19864817]
[1756215109416,0.36398411,110300.0,110290.0,0.25515249]
[1756215109417,0.02398411,110300.0,110290.0,0.25515249]
[1756215109577,0.63747017,110300.0,110290.0,0.25515249]
[1756215109966,0.3404,110310.0,110300.0,0.18132366]
[1756215110168,0.0004,110310.0,110300.0,0.29270504]
[1756215110370,0.0004,110310.0,110300.0,0.35206926]
[1756215110580,0.0004,110310.0,110300.0,0.42458886]
[1756215110785,0.00048,110330.0,110320.0,0.18129079]
[1756215110992,0.00048,110330.0,110320.0,1.09352823]
[1756215111197,0.00048,110330.0,110320.0,0.48004217]
[1756215111396,0.00048,110330.0,110320.0,1.14025583]
[1756215111723,0.00048,110330.0,110320.0,0.89529058]
[1756215111927,0.00048,110330.0,110320.0,1.50877664]
[1756215112527,0.00048,110330.0,110320.0,0.89529058]
[1756215112728,0.00048,110330.0,110320.0,1.54933415]
[1756215112928,0.00048,110330.0,110320.0,0.95991437]
[1756215113173,0.00048,110330.0,110320.0,1.57340043]
[1756215113596,0.00048,110330.0,110320.0,1.57940043]
[1756215113795,0.00048,110330.0,110320.0,1.55533415]
[1756215114003,0.0004,110340.0,110330.0,0.18127435]
[1756215114204,0.0004,110340.0,110330.0,1.28582675]
[1756215114411,0.0004,110340.0,110330.0,1.51610264]
[1756215114618,0.0004,110340.0,110330.0,0.92668286]
[1756215114835,0.0004,110340.0,110330.0,1.54016892]
[1756215115042,0.0004,110340.0,110330.0,1.28795675]
[1756215115246,0.0004,110360.0,110350.0,0.1812415]
[1756215115448,0.0004,110360.0,110350.0,0.49515204]
[1756215115651,0.0004,110360.0,110350.0,0.50038204]
[1756215116201,0.0004,110360.0,110350.0,1.1138681]
[1756215116430,0.0004,110360.0,110350.0,0.50038204]
[1756215117034,0.0004,110360.0,110350.0,1.1138681]
[1756215117235,0.0004,110360.0,110350.0,1.4538681]
[1756215117471,0.0004,110360.0,110350.0,0.84038204]
[1756215117679,0.0004,110360.0,110350.0,1.4538681]
[1756215118079,0.0004,110360.0,110350.0,0.84038204]
[1756215118375,0.0004,110360.0,110350.0,1.4538681]
[1756215119229,0.0004,110360.0,110350.0,0.84138204]
[1756215119383,0.0004,110360.0,110350.0,0.84106204]
[1756215119787,0.0004,110360.0,110350.0,0.84186204]
[1756215120179,0.0004,110360.0,110350.0,0.65518204]
[1756215120381,0.0004,110360.0,110350.0,0.84198204]
[1756215121673,0.01725411,110390.0,110380.0,0.18119224]
[1756215121891,0.0004,110400.0,110390.0,0.18117583]
[1756215122103,0.01963411,110400.0,110390.0,0.18117583]
[1756215122335,0.00238,110400.0,110390.0,0.18117583]
[1756215122985,0.0004,110400.0,110390.0,0.27312656]
[1756215123221,0.00238,110400.0,110390.0,0.29543433]
[1756215123432,0.00238,110400.0,110390.0,0.46000656]
[1756215123637,0.0034,110400.0,110390.0,0.46000656]